Cogmind - Beta 11.1 *** ADVENTURER MODE // 2022.04.28 @ 00:24:15 // AFD2020/Player2 Player: Fgdfgfthgr Result: Heading to fleet! Performance ------------- Evolutions (9) 4500 Regions Visited (32) 6400 Robots Destroyed (309) 1545 Value Destroyed (14580) 14580 Prototype IDs (54) 1080 Alien Tech Used (2) 400 Bonus (18195) 18195 TOTAL SCORE: 46700 Bonus ------- High Alert Combat Kills 3109 Follower Combat Kills 7389 Network Hubs Disabled 200 Met Data Miner 300 Met Imprinter 300 Met Zhirov 300 Met Warlord at Base 500 MAIN.C Attacked Warlord 500 Built Enhanced Grunts 300 Met R17 at Cetus 500 Read Decrypted Archives 300 Used Core Reset Matrix 3000 Hacked Protovariant 500 Win 3000 Friendly Fire -2003 Cogmind --------- Core Integrity 1548/1600 Matter 235/300 Energy 229/240 System Corruption 0% Temperature Cool (7) Movement Walking (112) Location To Fleet Rendezvous Parts ------- > --- POWER (2) -------- Micro Antimatter Reactor Light Quantum Reactor > --- PROPULSION (4) --- Biometal Leg Enhanced Biometal Leg Centrium Leg Centrium Leg > --- UTILITY (17) ----- Advanced Power Amplifier Advanced Cooling System Large Storage Unit Machine Analyzer Spectral Analyzer Advanced Terrain Scan Processor Advanced Targeting Computer Quantum Capacitor Improved Reaction Control System Layered Heavy Armor Plating Light Regenerative Plating Graphene Brace Experimental Hacking Suite System Purifier > --- WEAPON (2) ------- Cooled Nova Cannon CR-A16's Behemoth Slayer > --- INVENTORY (15) --- Reinforced Quantum Reactor Myomer Leg Centrium Leg Advanced Cooling System Coolant Network Experimental Thermal Shield Experimental EM Disruption Field Antimissile System Advanced Dynamic Insulation System Subatomic Replicator Improved Matter Neutralizer Core Cannon Tactical Quantum Warhead Peak State ------------ > --- POWER ------------ Micro Antimatter Reactor Light Quantum Reactor > --- PROPULSION ------- Biometal Leg Enhanced Biometal Leg Centrium Leg Centrium Leg > --- UTILITY ---------- Advanced Power Amplifier Advanced Cooling System Large Storage Unit Machine Analyzer Spectral Analyzer Advanced Terrain Scan Processor Advanced Targeting Computer Quantum Capacitor Improved Reaction Control System Advanced Phase Shifter Layered Heavy Armor Plating Light Regenerative Plating Graphene Brace Experimental Hacking Suite System Purifier > --- WEAPON ----------- Cooled Nova Cannon CR-A16's Behemoth Slayer > --- INVENTORY -------- Reinforced Quantum Reactor Myomer Leg Centrium Leg Advanced Cooling System Coolant Network Experimental Thermal Shield Experimental EM Disruption Field Antimissile System Advanced Dynamic Insulation System Subatomic Replicator Improved Matter Neutralizer Core Cannon Tactical Quantum Warhead [Rating: 191] Favorites ----------- Power Cooled Deuterium Engine Engine Cooled Deuterium Engine Power Core Micro Nuclear Core Reactor Vortex Chain Reactor Propulsion Flexi-carbon Leg Treads Light Treads Leg Flexi-carbon Leg Utility Large Storage Unit Device Improved Cooling System Storage Large Storage Unit Processor Core Analyzer Hackware Experimental Hacking Suite Protection Light Regenerative Plating Weapon Compact Ion Cannon Energy Gun Field Laser Energy Cannon Compact Ion Cannon Launcher Tactical Quantum Warhead Impact Weapon Powered Hammer Piercing Weapon CR-A16's Behemoth Slayer Build | -11 -10 -10 -9 -9 -9 -8 -8 -7 -7 -7 -7 -6 -6 -6 -6 -6 -5 -5 -5 -5 -5 -5 -4 -4 -4 -4 -3 -3 -3 -2 -2 -1 ------- Run | Scr Mat Min Mat Min Exi Min Mat Fac Low Low Dat Pro Fac Low Low Zio Pro Fac Ext Cet Arc Hub Fac Upp Upp War Pro Res Qua Res Tes Acc Slots Evolved 18 | . . . 2 . . . 2 2 . . . . 2 . . . . 2 . . . . 2 . . . . 2 . 2 . 2 Power 1 | . . . . . . . . . . . . . . . . . . 1 . . . . . . . . . . . . . . Propulsion 2 | . . . . . . . 1 1 . . . . . . . . . . . . . . . . . . . . . . . . Utility 15 | . . . 2 . . . 1 1 . . . . 2 . . . . 1 . . . . 2 . . . . 2 . 2 . 2 Weapon . | . . . . . . . . . . . . . . . . . . . . . . . . . . . . . . . . . Parts Attached 282 | . 7 . 19 3 . . 17 26 4 . . 1 34 . . 1 1 30 11 8 . 6 14 4 4 12 1 31 14 6 4 24 Power 20 | . . . 2 1 . . . 2 . . . . 1 . . . . 2 4 . . . 2 . . 1 . . . . 1 4 Engine 7 | . . . 2 1 . . . 1 . . . . . . . . . 1 1 . . . . . . . . . . . 1 . Core 7 | . . . . . . . . 1 . . . . 1 . . . . 1 3 . . . 1 . . . . . . . . . Reactor 6 | . . . . . . . . . . . . . . . . . . . . . . . 1 . . 1 . . . . . 4 Propulsion 66 | . 2 . 5 2 . . 4 5 . . . 1 13 . . . . 8 4 2 . 2 1 3 . 2 . 3 3 1 1 4 Treads 5 | . 2 . 3 . . . . . . . . . . . . . . . . . . . . . . . . . . . . . Leg 61 | . . . 2 2 . . 4 5 . . . 1 13 . . . . 8 4 2 . 2 1 3 . 2 . 3 3 1 1 4 Wheel . | . . . . . . . . . . . . . . . . . . . . . . . . . . . . . . . . . Hover . | . . . . . . . . . . . . . . . . . . . . . . . . . . . . . . . . . Flight . | . . . . . . . . . . . . . . . . . . . . . . . . . . . . . . . . . Utility 128 | . 3 . 7 . . . 7 13 2 . . . 8 . . 1 1 14 1 5 . 4 8 1 2 8 1 18 9 2 . 13 Device 78 | . 1 . 2 . . . 2 5 1 . . . . . . . . 8 1 3 . 3 6 1 2 4 1 17 8 2 . 11 Storage 5 | . 2 . 1 . . . . 1 . . . . . . . . . . . . . . . . . 1 . . . . . . Processor 10 | . . . . . . . 1 1 . . . . 2 . . . . 2 . . . . . . . 2 . 1 . . . 1 Hackware 10 | . . . . . . . . 2 . . . . 2 . . 1 1 2 . . . . 2 . . . . . . . . . Protection 25 | . . . 4 . . . 4 4 1 . . . 4 . . . . 2 . 2 . 1 . . . 1 . . 1 . . 1 Artifact . | . . . . . . . . . . . . . . . . . . . . . . . . . . . . . . . . . Weapon 68 | . 2 . 5 . . . 6 6 2 . . . 12 . . . . 6 2 1 . . 3 . 2 1 . 10 2 3 2 3 Energy Gun 25 | . 2 . 4 . . . 5 4 1 . . . 3 . . . . . . . . . . . . . . 3 2 1 . . Energy Cannon 27 | . . . . . . . . . . . . . 7 . . . . 5 1 1 . . 2 . 1 1 . 4 . 2 1 2 Ballistic Gun . | . . . . . . . . . . . . . . . . . . . . . . . . . . . . . . . . . Ballistic Cannon . | . . . . . . . . . . . . . . . . . . . . . . . . . . . . . . . . . Launcher 10 | . . . 1 . . . 1 1 1 . . . 2 . . . . . 1 . . . . . . . . 2 . . 1 . Special Weapon . | . . . . . . . . . . . . . . . . . . . . . . . . . . . . . . . . . Impact Weapon 1 | . . . . . . . . 1 . . . . . . . . . . . . . . . . . . . . . . . . Slashing Weapon . | . . . . . . . . . . . . . . . . . . . . . . . . . . . . . . . . . Piercing Weapon 5 | . . . . . . . . . . . . . . . . . . 1 . . . . 1 . 1 . . 1 . . . 1 Special Melee Weapon . | . . . . . . . . . . . . . . . . . . . . . . . . . . . . . . . . . Unidentified Prototypes 28 | . . . 1 . . . . 2 . . . 1 1 . . . . 1 . 3 . 3 2 . . 6 . 4 2 . 1 1 Corrupted Parts 3 | . . . . . . . . . . . . . . . . . . . . 2 . 1 . . . . . . . . . . System Corruption 12 | . . . . . . . . . . . . . . . . . . . . 9 . 3 . . . . . . . . . . Parts Lost 20 | . . . . . . . 6 . . . . . 2 . . . . 5 . . . . . . . . . . . . 5 2 Power 1 | . . . . . . . . . . . . . . . . . . . . . . . . . . . . . . . 1 . Propulsion 6 | . . . . . . . 2 . . . . . 1 . . . . 2 . . . . . . . . . . . . 1 . Utility 10 | . . . . . . . 2 . . . . . . . . . . 3 . . . . . . . . . . . . 3 2 Weapon 3 | . . . . . . . 2 . . . . . 1 . . . . . . . . . . . . . . . . . . . Highest Loss Streak 5 | . . . . . . . 3 . . . . . 1 . . . . 3 . . . . . . . . . . . . 5 1 To Critical Strikes 2 | . . . . . . . . . . . . . . . . . . . . . . . . . . . . . . . 1 1 Average Slot Usage (%) 96 | . 95 100 96 100 100 100 99 99 100 100 100 100 95 93 93 93 93 97 100 100 100 99 94 94 94 95 94 89 89 90 85 83 Engine 4 | . 14 14 11 11 11 11 9 5 7 7 7 7 1 . . . . 5 4 . . . . . . . . . . . 1 2 Core 2 | . . . . . . . . 1 . . . . 4 6 6 6 6 5 6 11 11 11 6 5 5 1 . . . . . . Treads 2 | . 28 28 13 . . . . . . . . . . . . . . . . . . . . . . . . . . . . . Leg 22 | . . . 8 22 22 22 26 30 30 30 30 30 25 26 26 26 26 22 23 23 23 23 21 21 21 21 21 19 18 17 15 14 Device 13 | . 7 14 18 22 22 22 13 14 15 15 15 15 7 6 6 6 6 12 17 17 23 18 15 15 15 12 14 18 18 25 23 22 Storage 7 | . 15 14 11 11 11 11 9 7 7 7 7 7 6 6 6 6 6 5 5 5 5 5 5 5 5 7 5 4 4 4 4 4 Processor 12 | . . . . . . . 9 7 7 7 7 7 11 13 13 13 13 21 23 23 23 23 21 21 21 25 26 23 23 21 19 18 Hackware 2 | . . . . . . . . 5 . . . . 6 6 6 6 6 2 . . . . 5 5 5 5 5 4 4 4 4 4 Protection 8 | . . . 11 11 11 11 13 8 15 15 15 15 15 13 13 13 13 5 5 4 . 3 5 5 5 5 5 4 3 4 4 5 Energy Gun 8 | . 28 28 21 22 22 22 17 14 14 15 15 15 4 . . . . . . . . . . . . . . 1 3 3 2 . Energy Cannon 5 | . . . . . . . . . . . . . 8 13 13 13 13 10 10 11 11 11 7 10 9 10 10 5 4 4 4 3 Naked Turns . | . . . . . . . . . . . . . . . . . . . . . . . . . . . . . . . . . Heaviest Build 109 | 12 22 20 44 44 43 43 46 52 68 68 68 68 71 62 62 62 62 76 76 78 75 82 89 89 89 96 95 103 100 108 109 102 Greatest Support 118 | 20 40 40 43 23 23 23 40 62 62 62 62 75 88 88 88 88 88 88 84 88 88 102 102 99 99 108 105 105 108 110 110 118 Greatest Overweight (x) 4 | . . . 4 2 1 1 1 . 1 1 1 1 1 . . . . 1 . 1 . . . . . . . . 1 . . . Average Overweight (x) . | . . . . 1 1 1 1 . . 1 1 . . . . . . . . . . . . . . . . . . . . . Largest Inventory Capacity 15 | 8 10 10 15 15 15 15 15 15 15 15 15 15 15 15 15 15 15 15 15 15 15 15 15 15 15 15 15 15 15 15 15 15 Average Capacity 14 | 8 9 10 14 15 15 15 15 15 15 15 15 15 15 15 15 15 15 15 15 15 15 15 15 15 15 15 15 15 15 15 15 15 Most Carried 15 | 6 10 8 15 15 14 14 15 15 15 15 15 15 15 15 15 15 15 15 15 15 15 15 15 15 15 15 15 15 15 14 15 15 Average Carried 14 | 6 7 8 13 14 14 14 14 14 14 15 15 15 14 15 14 14 15 14 15 14 15 14 14 15 15 14 15 14 14 13 14 14 Final Capacity 15 | 8 10 10 15 15 15 15 15 15 15 15 15 15 15 15 15 15 15 15 15 15 15 15 15 15 15 15 15 15 15 15 15 15 Final Carried 15 | 6 8 8 15 14 14 14 15 15 15 15 15 15 15 15 15 15 15 15 15 15 15 15 15 15 15 15 15 15 15 14 14 15 Class Distribution -------------------- 38% | Hacker-Mutant 31% | Mutant 20% | Scavenger-Mutant 4% | Hacker-Skirmisher 3% | Commander-Mutant Dominant Class ---------------- Mutant | -10/Materials Mutant | -10/Mines Mutant | -9/Materials Mutant | -9/Mines Mutant | -9/Exiles Mutant | -8/Mines Mutant | -8/Materials Scavenger-Mutant | -7/Factory Mutant | -7/Lower Caves Mutant | -7/Lower Caves Mutant | -7/Data Miner Mutant | -6/Proximity Caves Hacker-Mutant | -6/Factory Hacker-Mutant | -6/Lower Caves Hacker-Mutant | -6/Lower Caves Hacker-Mutant | -6/Zion Hacker-Mutant | -5/Proximity Caves Scavenger-Mutant | -5/Factory Commander-Mutant | -5/Extension Scavenger-Mutant | -5/Cetus Scavenger-Mutant | -5/Archives Scavenger-Mutant | -5/Hub_04(d) Hacker-Mutant | -4/Factory Hacker-Mutant | -4/Upper Caves Hacker-Mutant | -4/Upper Caves Hacker-Skirmisher | -4/Warlord Hacker-Skirmisher | -3/Proximity Caves Hacker-Mutant | -3/Research Hacker-Mutant | -3/Quarantine Hacker-Mutant | -2/Research Hacker-Mutant | -2/Testing Scavenger-Mutant | -1/Access Resources | -11 -10 -10 -9 -9 -9 -8 -8 -7 -7 -7 -7 -6 -6 -6 -6 -6 -5 -5 -5 -5 -5 -5 -4 -4 -4 -4 -3 -3 -3 -2 -2 -1 ----------- Run | Scr Mat Min Mat Min Exi Min Mat Fac Low Low Dat Pro Fac Low Low Zio Pro Fac Ext Cet Arc Hub Fac Upp Upp War Pro Res Qua Res Tes Acc Matter Collected 3489 | 200 70 . 223 30 . . 194 260 56 10 . 10 369 . . 10 10 280 162 85 . 104 140 40 40 . 178 285 274 60 23 376 Remotely . | . . . . . . . . . . . . . . . . . . . . . . . . . . . . . . . . . Salvage Created 15271 | . 417 . 457 360 . 106 1226 728 62 156 . 437 1151 61 168 . . 1459 941 415 . 207 949 240 346 . 258 2543 869 967 315 433 Parts 657 | . 28 . 33 24 . 3 48 30 6 3 . 19 46 6 3 . . 53 52 15 . 7 40 9 15 . 10 96 46 33 4 28 Haulers Intercepted 6 | . 1 . 1 . . . 3 1 . . . . . . . . . . . . . . . . . . . . . . . . Recyclers Shooed 7 | . 1 . 1 . . . . . . . . . 1 . . . . 1 . . . . . . . . . 2 . . 1 . Parts Field Recycled . | . . . . . . . . . . . . . . . . . . . . . . . . . . . . . . . . . Retrieved Matter . | . . . . . . . . . . . . . . . . . . . . . . . . . . . . . . . . . Parts Self-Destructed 103 | . . . . . . . . . 10 7 . 29 . 6 15 . . . . . . . . 4 11 11 10 . . . . . Prevented 28 | . . . . . . . . . . . . . . . . . 1 . . . . . . 9 8 4 6 . . . . . Kills | -11 -10 -10 -9 -9 -9 -8 -8 -7 -7 -7 -7 -6 -6 -6 -6 -6 -5 -5 -5 -5 -5 -5 -4 -4 -4 -4 -3 -3 -3 -2 -2 -1 ------- Run | Scr Mat Min Mat Min Exi Min Mat Fac Low Low Dat Pro Fac Low Low Zio Pro Fac Ext Cet Arc Hub Fac Upp Upp War Pro Res Qua Res Tes Acc Combat Hostiles Destroyed 242 | . 12 . 15 2 . 2 24 8 3 3 . 11 24 1 3 . . 20 15 6 . 3 12 3 4 . 4 29 13 10 11 4 Guns 87 | . 12 . 11 2 . 2 16 8 1 3 . 11 9 . . . . . . . . . . . . . . 3 7 1 1 . Cannons 73 | . . . . . . . . . . . . . 8 1 3 . . 14 10 4 . 3 7 1 1 . 4 10 4 . . 3 AOE 46 | . . . 4 . . . 7 . 2 . . . 5 . . . . 4 5 . . . 2 . . . . 3 . 4 10 . Classes Destroyed 21 | . 4 . 3 4 . . 1 . . . . 1 1 . . . . 1 2 . . . 1 . . . . 1 1 . 1 . Worker 10 | . . . . 1 . . 2 2 . . . . 1 . . . . . . . . 1 1 . . . . 1 . . 1 . Builder 9 | . . . . 1 . . 2 1 . . . . . . . . . 2 2 . . . . . . . . 1 . . . . Tunneler 1 | . . . . 1 . . . . . . . . . . . . . . . . . . . . . . . . . . . . Hauler 6 | . 1 . 1 . . . 3 1 . . . . . . . . . . . . . . . . . . . . . . . . Recycler 14 | . . . . 3 . 1 1 2 . . . . . . . . . 2 . . . . . . . . . 3 . 1 1 . Mechanic 1 | . . . . . . . . . . . . . . . . . . . 1 . . . . . . . . . . . . . Operator 4 | . . . 1 . . . 1 . . . . . . . . . . . . . . 1 . . . . . . . . 1 . Watcher 18 | . 2 . 1 . . . 1 1 . . . . 3 . . . . 3 . 1 . . 1 . . . . 5 . . . . Swarmer 48 | . 6 . 7 . . 2 . . 2 . . 6 6 . . . . 4 2 1 . . 1 . . . 2 3 2 4 . . Saboteur 1 | . . . . . . . . . . . . . . . . . . . . . . . . . . . . 1 . . . . Grunt 103 | . 6 . 6 2 . . 16 6 1 3 . 3 12 . 2 . . 9 6 . . 1 5 2 2 . . 7 5 5 4 . Brawler 10 | . . . 1 . . . 2 . . . . . 2 . 1 . . . 1 . . . 1 . 1 . 1 . . . . . Duelist 4 | . . . . . . . . . . . . . 1 . . . . . . . . . . . . . 1 1 1 . . . Protector 1 | . . . . . . . . . . . . . . . . . . . . . . . . . . . . . 1 . . . Researcher 1 | . . . . . . . . . . . . . . . . . . . . . . . . . . . . . . . 1 . Sentry 22 | . . . 1 . . . 4 2 . . . 1 2 . . . . 2 3 . . . 1 . . . . 5 . 1 . . Specialist 2 | . . . . . . . . . . . . . . . . . . . 2 . . . . . . . . . . . . . Hunter 26 | . . . . . . . 2 . . . . . . 1 . . . 2 . 1 . 1 2 1 . . . 6 . 2 7 1 Programmer 14 | . . . . . . . . . . . . 1 1 . . . . 2 . . . . . . . . . 5 4 . . 1 Heavy 2 | . . . . . . . . . . . . . . . . . . . . . . . 1 . . . . . . . . 1 Behemoth 6 | . . . . . . . . . . . . . . . . . . 1 1 . . . 1 . 1 . . 1 . . . 1 Cetus Guard 4 | . . . . . . . . . . . . . . . . . . . . 4 . . . . . . . . . . . . Enhanced Grunt 1 | . . . . . . . . . . . . . . . . . . . . . . . 1 . . . . . . . . . Lightning 1 | . . . . . . . . . . . . . . . . . . . . . . 1 . . . . . . . . . . Best Kill Streak 14 | . 5 . 4 4 . 3 9 2 2 3 . 5 3 1 2 . . 4 10 3 . 1 3 2 3 . 2 12 5 5 14 1 Combat Bots Only 10 | . 5 . 4 2 . 2 6 2 2 3 . 5 3 1 2 . . 4 7 3 . 1 3 2 3 . 2 9 5 5 10 1 Max Kills in Single Turn 6 | . 2 . 2 1 . 1 4 1 1 1 . 2 3 1 1 . . 3 4 1 . 1 2 1 1 . 1 6 1 4 6 1 Gunslinging 1 | . 1 . 1 . . . . . . . . 1 1 . . . . . . . . . . . . . . . . . . . Exploded 6 | . . . 2 . . . 4 . 1 . . . 3 . . . . 3 2 . . . 1 . . . . 3 . 4 6 . Melee . | . . . . . . . . . . . . . . . . . . . . . . . . . . . . . . . . . Uniques/NPCs Destroyed . | . . . . . . . . . . . . . . . . . . . . . . . . . . . . . . . . . Combat | -11 -10 -10 -9 -9 -9 -8 -8 -7 -7 -7 -7 -6 -6 -6 -6 -6 -5 -5 -5 -5 -5 -5 -4 -4 -4 -4 -3 -3 -3 -2 -2 -1 -------- Run | Scr Mat Min Mat Min Exi Min Mat Fac Low Low Dat Pro Fac Low Low Zio Pro Fac Ext Cet Arc Hub Fac Upp Upp War Pro Res Qua Res Tes Acc Damage Taken 9993 | . 140 . 323 43 . 55 1152 346 85 30 . 172 1458 . 301 . . 1438 194 215 . 407 464 57 123 . 35 970 284 131 970 600 Core 1140 | . 29 . 99 . . 7 99 36 33 2 . 23 121 . 14 . . 147 11 28 . 144 62 . 11 . . 102 20 17 83 52 Absorbed by Shields 2247 | . . . 24 . . . 32 20 . 4 . 66 40 . . . . 235 144 161 . 232 136 24 24 . . 675 82 125 223 . Redirected to Shielding 102 | . . . . . . . . . . . . 4 60 . . . . 38 . . . . . . . . . . . . . . Regen/Repaired (Parts) 726 | . . . . . . . . . . . . . . . . . . 111 28 5 . . 27 18 32 . 19 63 88 66 227 42 Core Remaining (%) 75 | 100 . 68 . . . 50 59 . . . . 74 . . . . 75 . . . . 38 . . . . 89 . 87 . 90 96 Volleys Fired 834 | . 30 . 42 13 . 4 73 44 6 6 . 19 88 2 31 . . 54 29 21 . 23 66 10 9 . 10 136 57 34 11 16 Largest 2 | . 2 . 2 2 . 2 2 2 2 2 . 2 2 2 2 . . 2 2 2 . 2 2 1 1 . 2 1 1 1 1 1 Hottest 200 | . 100 . 126 126 . 126 126 140 140 140 . 140 200 190 190 . . 190 180 180 . 180 180 88 88 . 171 113 113 113 113 50 Shots Fired 1312 | . 60 . 81 26 . 8 144 88 10 12 . 37 174 4 60 . . 105 55 41 . 46 69 10 9 . 19 136 57 34 11 16 Gun 650 | . 60 . 78 26 . 8 141 88 8 12 . 37 83 . . . . . . . . . . . . . . 38 34 30 7 . Cannon 643 | . . . . . . . . . . . . . 88 4 60 . . 105 51 41 . 46 69 10 9 . 19 97 23 4 1 16 Launcher 19 | . . . 3 . . . 3 . 2 . . . 3 . . . . . 4 . . . . . . . . 1 . . 3 . Special . | . . . . . . . . . . . . . . . . . . . . . . . . . . . . . . . . . Kinetic . | . . . . . . . . . . . . . . . . . . . . . . . . . . . . . . . . . Thermal 1065 | . 60 . 78 26 . 8 141 88 8 12 . 37 171 4 60 . . 98 51 41 . 46 44 . . . 9 39 23 4 1 16 Explosive 19 | . . . 3 . . . 3 . 2 . . . 3 . . . . . 4 . . . . . . . . 1 . . 3 . Electromagnetic 228 | . . . . . . . . . . . . . . . . . . 7 . . . . 25 10 9 . 10 96 34 30 7 . Robot Hit Streak 40 | . 12 . 17 9 . 2 27 30 12 9 . 40 21 2 14 . . 26 13 23 . 14 34 6 15 . 16 26 20 15 19 16 Robot Miss Streak 4 | . 2 . 2 2 . 2 1 2 1 1 . 1 3 1 2 . . 2 1 2 . 3 4 1 . . 2 2 1 1 2 1 Penetration Max . | . . . . . . . . . . . . . . . . . . . . . . . . . . . . . . . . . Secondary Targets 15 | . 2 . 2 . . 1 3 1 . . . 4 2 . . . . . . . . . . . . . . . . . . . Max Gunslinging Chain 1 | . 1 . 1 . . 1 1 1 . . . 1 1 . . . . . . . . . . . . . . . . . . . Capacitor 325 | . . . . . . . . . . . . . . . . . . . . . . . 63 10 9 . . 135 57 34 8 9 Shots Hit Robots 1005 | . 49 . 64 18 . 4 118 72 9 11 . 34 124 2 15 . . 91 43 29 . 33 61 9 10 . 12 106 42 27 7 15 Core Hits 537 | . 21 . 29 9 . 3 54 31 6 5 . 16 66 2 11 . . 53 40 15 . 12 24 4 4 . 7 51 21 15 32 6 Critical Kills 2 | . . . . . . . . . . . . . . . . . . 1 . 1 . . . . . . . . . . . . Critical Parts Destroyed . | . . . . . . . . . . . . . . . . . . . . . . . . . . . . . . . . . Critical Strikes 36 | . . . 1 2 . 1 4 6 . 2 . 6 8 . . . . 1 . 1 . . 1 1 . . 1 1 . . . . Burn 30 | . . . 1 2 . 1 4 6 . 2 . 6 8 . . . . . . . . . . . . . . . . . . . Meltdown 2 | . . . . . . . . . . . . . . . . . . 1 . 1 . . . . . . . . . . . . Corrupt 4 | . . . . . . . . . . . . . . . . . . . . . . . 1 1 . . 1 1 . . . . Melee Attacks 20 | . . . . . . . . 2 . . . . . . . . . 14 . . . . 1 . 1 . . 1 . . . 1 Impact 2 | . . . . . . . . 2 . . . . . . . . . . . . . . . . . . . . . . . . Slashing . | . . . . . . . . . . . . . . . . . . . . . . . . . . . . . . . . . Piercing 18 | . . . . . . . . . . . . . . . . . . 14 . . . . 1 . 1 . . 1 . . . 1 Sneak Attacks 1 | . . . . . . . . . . . . . . . . . . . . . . . 1 . . . . . . . . . Combat Hostiles 1 | . . . . . . . . . . . . . . . . . . . . . . . 1 . . . . . . . . . Follow-up Attacks . | . . . . . . . . . . . . . . . . . . . . . . . . . . . . . . . . . Damage Inflicted 35457 | . 629 . 1243 315 . 71 3210 1491 371 246 . 814 3896 69 666 . . 3390 2302 835 . 1420 2942 357 330 . 410 4872 1347 1242 2419 570 Guns 11294 | . 629 . 951 315 . 71 2010 1491 156 246 . 814 1685 . . . . . . . . . . . . . . 959 820 934 213 . Cannons 15672 | . . . . . . . . . . . . . 1565 69 666 . . 2449 1238 835 . 1222 2432 357 330 . 410 2955 527 47 . 570 Explosions 8166 | . . . 292 . . . 1192 . 215 . . . 646 . . . . 624 1064 . . 198 510 . . . . 958 . 261 2206 . Melee 317 | . . . . . . . . . . . . . . . . . . 317 . . . . . . . . . . . . . . Ramming 8 | . . . . . . . 8 . . . . . . . . . . . . . . . . . . . . . . . . . Kinetic . | . . . . . . . . . . . . . . . . . . . . . . . . . . . . . . . . . Thermal 21179 | . 629 . 951 315 . 71 2010 1491 156 246 . 814 3250 69 666 . . 2258 1238 835 . 1285 2120 . . . 152 1218 527 308 . 570 Explosive 6761 | . . . 292 . . . 1192 . 215 . . . 646 . . . . 460 1064 . . . . . . . . 686 . . 2206 . Electromagnetic 7192 | . . . . . . . . . . . . . . . . . . 355 . . . 135 822 357 330 . 258 2968 820 934 213 . Impact . | . . . . . . . . . . . . . . . . . . . . . . . . . . . . . . . . . Slashing . | . . . . . . . . . . . . . . . . . . . . . . . . . . . . . . . . . Piercing 317 | . . . . . . . . . . . . . . . . . . 317 . . . . . . . . . . . . . . Highest Corruption 9 | . . . . . . . 1 1 . . . . . . . . . 1 . 9 9 9 . . . . . 1 1 . . 1 Average Corruption 2 | . . . . . . . 1 1 . . . . . . . . . 1 . 8 8 6 . . . . . 1 1 . . 1 Corruption Purged 8 | . . . . . . . . 1 . . . . . . . . . 1 . . 1 3 . . . . . 1 . . . 1 Corruption Blocked . | . . . . . . . . . . . . . . . . . . . . . . . . . . . . . . . . . Effects 21 | . . . . . . . 2 . . . . . . . . . . . . 2 2 10 . . . . . 1 1 . . 3 Message Errors 5 | . . . . . . . . . . . . . . . . . . . . 1 . 4 . . . . . . . . . . Matter Fused 5 | . . . . . . . . . . . . . . . . . . . . 1 . 2 . . . . . . 1 . . 1 Heat Flow Errors 4 | . . . . . . . 1 . . . . . . . . . . . . . 1 2 . . . . . . . . . . Energy Discharges 3 | . . . . . . . . . . . . . . . . . . . . . 1 1 . . . . . 1 . . . . Parts Rejected 1 | . . . . . . . . . . . . . . . . . . . . . . . . . . . . . . . . 1 Data Loss (minor) 1 | . . . . . . . . . . . . . . . . . . . . . . . . . . . . . . . . 1 Data Loss (major) 1 | . . . . . . . . . . . . . . . . . . . . . . 1 . . . . . . . . . . Misfires 1 | . . . . . . . 1 . . . . . . . . . . . . . . . . . . . . . . . . . Overload Shots . | . . . . . . . . . . . . . . . . . . . . . . . . . . . . . . . . . Overflow Damage 730 | . . . 84 . . . 22 . 9 . . . 30 . . . . 108 26 9 . 83 92 . . . . 145 45 . 77 . Projectiles 364 | . . . . . . . . . . . . . 30 . . . . 79 . 9 . 40 34 . . . . 127 45 . . . Explosions 366 | . . . 84 . . . 22 . 9 . . . . . . . . 29 26 . . 43 58 . . . . 18 . . 77 . Melee . | . . . . . . . . . . . . . . . . . . . . . . . . . . . . . . . . . Knockbacks . | . . . . . . . . . . . . . . . . . . . . . . . . . . . . . . . . . Impact . | . . . . . . . . . . . . . . . . . . . . . . . . . . . . . . . . . Kinetic . | . . . . . . . . . . . . . . . . . . . . . . . . . . . . . . . . . Secondary . | . . . . . . . . . . . . . . . . . . . . . . . . . . . . . . . . . Self-Inflicted Damage 357 | . . . . . . . 113 . . . . . . . . . . 15 . . . 118 59 . . . . 52 . . . . Shots 8 | . . . . . . . 2 . . . . . . . . . . 1 . . . 2 2 . . . . 1 . . . . Rammed . | . . . . . . . . . . . . . . . . . . . . . . . . . . . . . . . . . Targets Rammed 1 | . . . . . . . 1 . . . . . . . . . . . . . . . . . . . . . . . . . Kicked 1 | . . . . . . . 1 . . . . . . . . . . . . . . . . . . . . . . . . . Crushed . | . . . . . . . . . . . . . . . . . . . . . . . . . . . . . . . . . Highest Temperature 569 | . 108 . 84 12 . 6 336 7 . . . . 126 96 235 . . 228 291 201 244 569 383 198 186 . 186 197 135 267 60 16 Average Temperature 79 | . 28 . 18 3 . 3 79 3 . . . . 36 49 66 . . 72 109 121 130 136 124 105 110 . 88 96 41 125 32 8 Received Heat Transfer 2788 | . 54 . 177 15 . . 657 162 . 18 . 57 674 . 141 . . 269 51 16 . 25 139 8 55 . . 131 123 16 . . Effects 9 | . . . . . . . 2 . . . . . . . . . . . . . . 4 3 . . . . . . . . . Shutdowns 1 | . . . . . . . . . . . . . . . . . . . . . . 1 . . . . . . . . . . Energy Bleed 3 | . . . . . . . 2 . . . . . . . . . . . . . . 1 . . . . . . . . . . Interference 3 | . . . . . . . . . . . . . . . . . . . . . . . 3 . . . . . . . . . Matter Decay 1 | . . . . . . . . . . . . . . . . . . . . . . 1 . . . . . . . . . . Damage (core) 1 | . . . . . . . . . . . . . . . . . . . . . . 1 . . . . . . . . . . Siege Activations . | . . . . . . . . . . . . . . . . . . . . . . . . . . . . . . . . . Robots Corrupted 27 | . . . . . . . . . . . . . . . . . . . . . . . 2 2 2 . . 12 2 7 . . Combat Hostiles 25 | . . . . . . . . . . . . . . . . . . . . . . . 2 2 2 . . 12 2 5 . . Parts Fried 61 | . . . . . . . . . . . . . . . . . . 3 . . . . 3 2 . . . 28 11 13 1 . Impact Corruptions . | . . . . . . . . . . . . . . . . . . . . . . . . . . . . . . . . . Robots Melted 6 | . . . . . . . 1 . . . . . 2 . . . . 1 . 2 . . . . . . . . . . . . Combat Hostiles 6 | . . . . . . . 1 . . . . . 2 . . . . 1 . 2 . . . . . . . . . . . . Parts Melted 68 | . 1 . 4 . . 1 15 5 . 4 . 4 8 . 4 . . 7 3 5 . 1 . . . . . 3 . . . 3 Heat Transferred 30063 | . 1499 . 2377 814 . 222 4597 3108 259 555 . 1776 5534 87 797 . . 2847 1595 1073 . 697 361 . . . . 790 407 187 . 481 Parts Sabotaged . | . . . . . . . . . . . . . . . . . . . . . . . . . . . . . . . . . Parts Stolen . | . . . . . . . . . . . . . . . . . . . . . . . . . . . . . . . . . Parts Stripped . | . . . . . . . . . . . . . . . . . . . . . . . . . . . . . . . . . Power Chain Reactions 6 | . . . . . . . . . . . . . . . . . . . . . . 1 3 . . . . 1 . 1 . . Missiles Intercepted . | . . . . . . . . . . . . . . . . . . . . . . . . . . . . . . . . . Alert | -11 -10 -10 -9 -9 -9 -8 -8 -7 -7 -7 -7 -6 -6 -6 -6 -6 -5 -5 -5 -5 -5 -5 -4 -4 -4 -4 -3 -3 -3 -2 -2 -1 ------- Run | Scr Mat Min Mat Min Exi Min Mat Fac Low Low Dat Pro Fac Low Low Zio Pro Fac Ext Cet Arc Hub Fac Upp Upp War Pro Res Qua Res Tes Acc Peak Influence 1494 | . 398 91 529 205 . 82 593 365 . . . . 902 . . . . 443 1141 872 428 798 536 . . . . 1494 1189 884 1480 966 Initial 777 | . . 91 30 110 . . 27 148 . . . . 122 . . . . . 110 463 294 124 336 . . . . 27 711 536 432 777 Average 387 | . 227 91 334 109 . 39 359 172 . . . . 602 . . . . 224 565 655 341 385 183 . . . . 546 942 682 816 867 Maximum Alert Level 4 | . 1 . 2 1 . . 2 1 . . . . 3 . . . . 2 4 3 2 3 2 . . . . 4 4 3 4 3 Low Security (%) 25 | 100 38 100 6 57 . 100 4 56 . . . . 4 . . . . 36 16 . . 23 56 . . . . 27 . . . . Level 1 36 | . 61 . 60 42 . . 58 43 . . . . 13 . . . . 55 3 . 67 40 37 . . . . 18 . . 1 . Level 2 20 | . . . 33 . . . 36 . . . . . 40 . . . . 7 54 60 32 22 6 . . . . 14 . 43 54 . Level 3 14 | . . . . . . . . . . . . . 41 . . . . . 17 39 . 13 . . . . . 29 82 56 13 100 Level 4 2 | . . . . . . . . . . . . . . . . . . . 7 . . . . . . . . 10 17 . 30 . Level 5 . | . . . . . . . . . . . . . . . . . . . . . . . . . . . . . . . . . High Security . | . . . . . . . . . . . . . . . . . . . . . . . . . . . . . . . . . Max Security . | . . . . . . . . . . . . . . . . . . . . . . . . . . . . . . . . . Squads Dispatched 79 | . 4 . 3 . . . 8 6 . . . . 9 . . . . 8 5 1 . 2 4 . . . . 11 2 1 13 2 Investigation 17 | . 4 . 1 . . . 3 2 . . . . 1 . . . . 3 . 1 . 1 . . . . . 1 . . . . Extermination 12 | . . . . . . . . 3 . . . . 3 . . . . 1 . . . . 1 . . . . 3 1 . . . Reinforcement 34 | . . . 2 . . . 3 1 . . . . 3 . . . . 4 2 . . 1 3 . . . . 3 . 1 10 1 Assault 11 | . . . . . . . . . . . . . 1 . . . . . 3 . . . . . . . . 2 1 . 3 1 Garrison 5 | . . . . . . . 2 . . . . . 1 . . . . . . . . . . . . . . 2 . . . . Intercept . | . . . . . . . . . . . . . . . . . . . . . . . . . . . . . . . . . Searches Triggered . | . . . . . . . . . . . . . . . . . . . . . . . . . . . . . . . . . Data Miner Redirects 7 | . . . . . . . . . . . . . 2 . . . . 2 . . . . . . . . . 1 1 . 1 . Construction Impeded 9 | . . . 1 . . . 1 . . . . . 2 . . . . 1 1 . . . 1 . . . . 1 . . 1 . Haulers Reinforced 4 | . . . . . . . . 1 . . . . . . . . . . . . . . 1 . . . . . . 1 1 . Active Scanning Responses . | . . . . . . . . . . . . . . . . . . . . . . . . . . . . . . . . . Cargo Convoy Interrupts . | . . . . . . . . . . . . . . . . . . . . . . . . . . . . . . . . . Stealth | -11 -10 -10 -9 -9 -9 -8 -8 -7 -7 -7 -7 -6 -6 -6 -6 -6 -5 -5 -5 -5 -5 -5 -4 -4 -4 -4 -3 -3 -3 -2 -2 -1 --------- Run | Scr Mat Min Mat Min Exi Min Mat Fac Low Low Dat Pro Fac Low Low Zio Pro Fac Ext Cet Arc Hub Fac Upp Upp War Pro Res Qua Res Tes Acc Distress Signals 27 | . 2 . 2 . . . . 1 . . . . 3 . . . . 2 2 2 . . 1 . . . . 3 . 7 2 . Communications Jammed . | . . . . . . . . . . . . . . . . . . . . . . . . . . . . . . . . . Distress Signals . | . . . . . . . . . . . . . . . . . . . . . . . . . . . . . . . . . Times Spotted 484 | . 22 . 28 4 . 3 47 22 6 5 . 19 52 1 8 . . 37 35 17 . 15 25 5 5 2 6 61 20 12 20 7 Peak Tracking Total 12 | . 6 . 4 3 . 3 7 2 3 4 . 11 7 1 4 . . 5 10 5 . 5 5 3 4 8 3 7 5 7 12 3 Tactical Retreats 10 | . 1 . . . . . 1 . . . . . 1 . . . . 1 1 . . 1 1 . . . . 2 1 . . . Traps | -11 -10 -10 -9 -9 -9 -8 -8 -7 -7 -7 -7 -6 -6 -6 -6 -6 -5 -5 -5 -5 -5 -5 -4 -4 -4 -4 -3 -3 -3 -2 -2 -1 ------- Run | Scr Mat Min Mat Min Exi Min Mat Fac Low Low Dat Pro Fac Low Low Zio Pro Fac Ext Cet Arc Hub Fac Upp Upp War Pro Res Qua Res Tes Acc Traps Triggered 16 | . . . 1 . . . 1 1 . . . . 4 . . . . 1 2 . . 1 . . . . . 4 1 . . . Indirectly . | . . . . . . . . . . . . . . . . . . . . . . . . . . . . . . . . . Trap Hack Attempts . | . . . . . . . . . . . . . . . . . . . . . . . . . . . . . . . . . Triggered . | . . . . . . . . . . . . . . . . . . . . . . . . . . . . . . . . . Disarmed . | . . . . . . . . . . . . . . . . . . . . . . . . . . . . . . . . . Reprogrammed 6 | . 6 . . . . . . . . . . . . . . . . . . . . . . . . . . . . . . . Reused 1 | . 1 . . . . . . . . . . . . . . . . . . . . . . . . . . . . . . . Traps Extracted . | . . . . . . . . . . . . . . . . . . . . . . . . . . . . . . . . . Installed . | . . . . . . . . . . . . . . . . . . . . . . . . . . . . . . . . . Triggered 13 | . 1 . . . . . . . . . . . . . . . 1 . . . . . . . . 11 . . . . . . Machines | -11 -10 -10 -9 -9 -9 -8 -8 -7 -7 -7 -7 -6 -6 -6 -6 -6 -5 -5 -5 -5 -5 -5 -4 -4 -4 -4 -3 -3 -3 -2 -2 -1 ---------- Run | Scr Mat Min Mat Min Exi Min Mat Fac Low Low Dat Pro Fac Low Low Zio Pro Fac Ext Cet Arc Hub Fac Upp Upp War Pro Res Qua Res Tes Acc Machines Disabled 51 | . . . 1 2 . . 4 2 . . . 1 11 . . . . 8 1 . . 2 . . . . . 2 4 . 13 . Max in Single Turn 2 | . . . 1 1 . . 1 1 . . . 1 2 . . . . 2 1 . . 2 . . . . . . 1 . 1 . Garrison Access 5 | . . . . . . . 1 . . . . . 1 . . . . 1 . . . . . . . . . 1 . . . 1 Network Hub 1 | . . . . . . . . . . . . . . . . . . . . . . 1 . . . . . . . . . . Machines Sabotaged . | . . . . . . . . . . . . . . . . . . . . . . . . . . . . . . . . . Garrisons Compromised . | . . . . . . . . . . . . . . . . . . . . . . . . . . . . . . . . . Overloaded Fab Kills . | . . . . . . . . . . . . . . . . . . . . . . . . . . . . . . . . . Hacking | -11 -10 -10 -9 -9 -9 -8 -8 -7 -7 -7 -7 -6 -6 -6 -6 -6 -5 -5 -5 -5 -5 -5 -4 -4 -4 -4 -3 -3 -3 -2 -2 -1 --------- Run | Scr Mat Min Mat Min Exi Min Mat Fac Low Low Dat Pro Fac Low Low Zio Pro Fac Ext Cet Arc Hub Fac Upp Upp War Pro Res Qua Res Tes Acc Machines Accessed 88 | . 10 . 4 . 1 . 7 6 2 1 4 1 12 . . . . 13 . 1 1 2 5 . . 1 . 8 3 1 2 3 Terminals 57 | . 8 . 4 . . . 6 4 . . . 1 8 . . . . 7 . 1 . 2 3 . . . . 6 3 1 1 2 Fabricators 10 | . . . . . . . . 1 . . . . 2 . . . . 4 . . . . 2 . . . . 1 . . . . Repair Stations 1 | . . . . . . . . . . . . . . . . . . . . . . . . . . . . . . . 1 . Recycling Units 2 | . 2 . . . . . . . . . . . . . . . . . . . . . . . . . . . . . . . Scanalyzers 2 | . . . . . . . . 1 . . . . 1 . . . . . . . . . . . . . . . . . . . Garrison Access 6 | . . . . . . . 1 . . . . . 1 . . . . 2 . . . . . . . . . 1 . . . 1 Total Hacks 276 | . 26 . 13 . 1 . 17 16 7 1 29 3 40 . . . . 33 . 3 9 5 21 . . 1 . 26 7 3 10 5 Successful 174 | . 21 . 8 . 1 . 6 4 7 1 29 3 21 . . . . 18 . . 9 2 13 . . 1 . 15 6 1 6 2 Failed 101 | . 4 . 5 . . . 11 12 . . . . 19 . . . . 15 . 3 . 3 8 . . . . 11 1 2 4 3 Catastrophic 15 | . . . . . . . 3 1 . . . . 3 . . . . 1 . 2 . 1 1 . . . . 2 . . . 1 Database Lockouts 1 | . 1 . . . . . . . . . . . . . . . . . . . . . . . . . . . . . . . Manual 88 | . 14 . 9 . . . 9 2 . . . . 10 . . 1 . 14 . 1 . 3 14 . . 1 . 9 . 1 . . Terminals 167 | . 24 . 13 . . . 16 11 . . . 3 23 . . . . 14 . 3 . 5 17 . . . . 18 7 3 6 4 Fabricators 34 | . . . . . . . . 2 . . . . 8 . . . . 15 . . . . 4 . . . . 5 . . . . Repair Stations 4 | . . . . . . . . . . . . . . . . . . . . . . . . . . . . . . . 4 . Recycling Units 2 | . 2 . . . . . . . . . . . . . . . . . . . . . . . . . . . . . . . Scanalyzers 10 | . . . . . . . . 3 . . . . 7 . . . . . . . . . . . . . . . . . . . Garrison Access 11 | . . . . . . . 1 . . . . . 2 . . . . 4 . . . . . . . . . 3 . . . 1 Terminal Hacks 124 | . 17 . 7 . 1 . 4 2 7 1 29 3 7 . . . . 6 . . 9 2 9 . . 1 . 7 6 1 4 1 Record 32 | . . . . . 1 . . . 6 . 11 3 1 . . . . . . . 9 . . . . . . . 1 . . . Part Schematic 13 | . . . . . . . . . . . 11 . . . . . . . . . . . . . . . . 1 . . 1 . Robot Schematic 4 | . . . . . . . . . . . 4 . . . . . . . . . . . . . . . . . . . . . Robot Analysis 8 | . 3 . 1 . . . . . . . . . . . . . . . . . . 1 1 . . . . . 2 . . . Prototype ID Bank 16 | . 7 . 3 . . . . 1 . . 3 . . . . . . . . . . . 1 . . . . . 1 . . . Open Door 5 | . . . . . . . . . 1 1 . . . . . . . . . . . . . . . 1 . 1 . . . 1 Level Access Points 1 | . . . . . . . . . . . . . . . . . . . . . . . 1 . . . . . . . . . Branch Access Points 6 | . . . 2 . . . . . . . . . 1 . . . . 1 . . . . . . . . . 1 . 1 . . Emergency Access Points 3 | . 1 . . . . . 1 . . . . . . . . . . . . . . . 1 . . . . . . . . . Terminal Index 3 | . . . . . . . . 1 . . . . 1 . . . . . . . . . . . . . . 1 . . . . Alert Level 3 | . . . . . . . 1 . . . . . . . . . . 1 . . . . 1 . . . . . . . . . Unreport Threat 9 | . . . . . . . 1 . . . . . 2 . . . . 1 . . . . 4 . . . . . . . 1 . Locate Traps 11 | . 2 . . . . . . . . . . . 1 . . . . 3 . . . 1 . . . . . 2 1 . 1 . Reprogram Traps 1 | . 1 . . . . . . . . . . . . . . . . . . . . . . . . . . . . . . . Security Status 1 | . 1 . . . . . . . . . . . . . . . . . . . . . . . . . . . . . . . Reinforcement Status 1 | . 1 . . . . . . . . . . . . . . . . . . . . . . . . . . . . . . . Zone Layout 6 | . 1 . 1 . . . 1 . . . . . 1 . . . . . . . . . . . . . . 1 1 . . . Protovariant Controls 1 | . . . . . . . . . . . . . . . . . . . . . . . . . . . . . . . 1 . Fabricator Hacks 15 | . . . . . . . . 1 . . . . 5 . . . . 7 . . . . 1 . . . . 1 . . . . Network Status 2 | . . . . . . . . . . . . . 1 . . . . 1 . . . . . . . . . . . . . . Load Schematic 7 | . . . . . . . . . . . . . 3 . . . . 4 . . . . . . . . . . . . . . Build 6 | . . . . . . . . 1 . . . . 1 . . . . 2 . . . . 1 . . . . 1 . . . . Repair Station Hacks 2 | . . . . . . . . . . . . . . . . . . . . . . . . . . . . . . . 2 . Scan Component 1 | . . . . . . . . . . . . . . . . . . . . . . . . . . . . . . . 1 . Repair 1 | . . . . . . . . . . . . . . . . . . . . . . . . . . . . . . . 1 . Recycling Unit Hacks . | . . . . . . . . . . . . . . . . . . . . . . . . . . . . . . . . . Scanalyzer 6 | . . . . . . . . 1 . . . . 5 . . . . . . . . . . . . . . . . . . . Insert Component 4 | . . . . . . . . 1 . . . . 3 . . . . . . . . . . . . . . . . . . . Analyze 2 | . . . . . . . . . . . . . 2 . . . . . . . . . . . . . . . . . . . Garrison Access Hacks 5 | . . . . . . . 1 . . . . . 1 . . . . 1 . . . . . . . . . 1 . . . 1 Seal Access 5 | . . . . . . . 1 . . . . . 1 . . . . 1 . . . . . . . . . 1 . . . 1 Unauthorized Hacks 22 | . 4 . 1 . . . 1 . . . . . 3 . . . . 4 . . . . 3 . . . . 6 . . . . Terminals 9 | . 2 . 1 . . . 1 . . . . . 1 . . . . 1 . . . . 1 . . . . 2 . . . . Track 1 | . . . . . . . . . . . . . . . . . . . . . . . . . . . . 1 . . . . Botnet 8 | . 2 . 1 . . . 1 . . . . . 1 . . . . 1 . . . . 1 . . . . 1 . . . . Fabricators 11 | . . . . . . . . . . . . . 2 . . . . 3 . . . . 2 . . . . 4 . . . . Report 1 | . . . . . . . . . . . . . . . . . . . . . . . . . . . . 1 . . . . Prioritize 1 | . . . . . . . . . . . . . 1 . . . . . . . . . . . . . . . . . . . Liberate 1 | . . . . . . . . . . . . . . . . . . . . . . . . . . . . 1 . . . . Fabnet 2 | . . . . . . . . . . . . . . . . . . . . . . . 1 . . . . 1 . . . . Haulers 2 | . . . . . . . . . . . . . . . . . . . . . . . 1 . . . . 1 . . . . Download 1 | . . . . . . . . . . . . . . . . . . 1 . . . . . . . . . . . . . . Recompile 3 | . . . . . . . . . . . . . 1 . . . . 2 . . . . . . . . . . . . . . Repair Stations . | . . . . . . . . . . . . . . . . . . . . . . . . . . . . . . . . . Recycling Units 2 | . 2 . . . . . . . . . . . . . . . . . . . . . . . . . . . . . . . Tunnel 2 | . 2 . . . . . . . . . . . . . . . . . . . . . . . . . . . . . . . Scanalyzers . | . . . . . . . . . . . . . . . . . . . . . . . . . . . . . . . . . Garrison Access . | . . . . . . . . . . . . . . . . . . . . . . . . . . . . . . . . . Data Cores Recovered . | . . . . . . . . . . . . . . . . . . . . . . . . . . . . . . . . . Used . | . . . . . . . . . . . . . . . . . . . . . . . . . . . . . . . . . Hacking Detections 65 | . 7 . 3 . . . 6 6 . . . 1 10 . . . . 11 . 1 . 2 5 . . . . 6 2 1 2 2 Full Trace Events 6 | . . . . . . . 2 2 . . . . . . . . . . . 1 . 1 . . . . . . . . . . Feedback Events 1 | . . . . . . . . 1 . . . . . . . . . . . . . . . . . . . . . . . . Corruption 1 | . . . . . . . . 1 . . . . . . . . . . . . . . . . . . . . . . . . Feedback Blocked . | . . . . . . . . . . . . . . . . . . . . . . . . . . . . . . . . . Robot Schematics Acquired 7 | . . . . . . . . . . . 4 . . . . 2 . . . . . . . . . . . . . . 1 . Robots Built . | . . . . . . . . . . . . . . . . . . . . . . . . . . . . . . . . . Authchips . | . . . . . . . . . . . . . . . . . . . . . . . . . . . . . . . . . Time . | . . . . . . . . . . . . . . . . . . . . . . . . . . . . . . . . . Total Robot Build Rating . | . . . . . . . . . . . . . . . . . . . . . . . . . . . . . . . . . Part Schematics Acquired 32 | . . . . . . . . . . . 11 . 2 . . 15 . . . . . . . . . . . 1 . . 3 . Parts Built 10 | . . . . . . . . 2 . . . . 1 . . . . 4 . . . . 2 . . . . 1 . . . . Authchips 3 | . . . . . . . . . . . . . 1 . . . . 2 . . . . . . . . . . . . . . Time 375 | . . . . . . . . 84 . . . . 76 . . . . 105 . . . . 46 . . . . 64 . . . . Total Part Build Rating 63 | . . . . . . . . 8 . . . . 5 . . . . 24 . . . . 18 . . . . 8 . . . . Parts Repaired 1 | . . . . . . . . . . . . . . . . . . . . . . . . . . . . . . . 1 . Time 36 | . . . . . . . . . . . . . . . . . . . . . . . . . . . . . . . 36 . Parts Recycled . | . . . . . . . . . . . . . . . . . . . . . . . . . . . . . . . . . Recycled Matter . | . . . . . . . . . . . . . . . . . . . . . . . . . . . . . . . . . Retrieved Matter . | . . . . . . . . . . . . . . . . . . . . . . . . . . . . . . . . . Retrieved Components . | . . . . . . . . . . . . . . . . . . . . . . . . . . . . . . . . . Parts Scanalyzed 3 | . . . . . . . . 1 . . . . 2 . . . . . . . . . . . . . . . . . . . Part Schematics Acquired 2 | . . . . . . . . . . . . . 2 . . . . . . . . . . . . . . . . . . . Parts Damaged . | . . . . . . . . . . . . . . . . . . . . . . . . . . . . . . . . . Bothacking | -11 -10 -10 -9 -9 -9 -8 -8 -7 -7 -7 -7 -6 -6 -6 -6 -6 -5 -5 -5 -5 -5 -5 -4 -4 -4 -4 -3 -3 -3 -2 -2 -1 ------------ Run | Scr Mat Min Mat Min Exi Min Mat Fac Low Low Dat Pro Fac Low Low Zio Pro Fac Ext Cet Arc Hub Fac Upp Upp War Pro Res Qua Res Tes Acc Used RIF Installer . | . . . . . . . . . . . . . . . . . . . . . . . . . . . . . . . . . Robots Hacked 7 | . . . . . . . . . . . . . . . . . . . . . . . . . . . . 2 . 2 3 . Non-combat . | . . . . . . . . . . . . . . . . . . . . . . . . . . . . . . . . . Combat 7 | . . . . . . . . . . . . . . . . . . . . . . . . . . . . 2 . 2 3 . Robot Hacks Applied . | . . . . . . . . . . . . . . . . . . . . . . . . . . . . . . . . . Relay Couplers Released 4 | . . . . . . . . . . . . . . . . . . 4 . . . . . . . . . . . . . . Programmers 4 | . . . . . . . . . . . . . . . . . . 4 . . . . . . . . . . . . . . Fabnet Peak Effective % 4 | . . . . . . . . . . . . . . . . . . . . . . . . . . . 3 3 3 4 4 1 Autooverrided 7 | . . . . . . . . . . . . . . . . . . . . . . . . . . . . 2 . 2 3 . Robots Rewired 11 | . . . . . . . . . . . . . . . . . . . 11 . . . . . . . . . . . . . Allies Hacked . | . . . . . . . . . . . . . . . . . . . . . . . . . . . . . . . . . Hacks Repelled . | . . . . . . . . . . . . . . . . . . . . . . . . . . . . . . . . . Allies | -11 -10 -10 -9 -9 -9 -8 -8 -7 -7 -7 -7 -6 -6 -6 -6 -6 -5 -5 -5 -5 -5 -5 -4 -4 -4 -4 -3 -3 -3 -2 -2 -1 -------- Run | Scr Mat Min Mat Min Exi Min Mat Fac Low Low Dat Pro Fac Low Low Zio Pro Fac Ext Cet Arc Hub Fac Upp Upp War Pro Res Qua Res Tes Acc Total Allies 35 | . 1 . . . . . . . . . . 1 . . . 4 . . 14 5 . . . . . . . 5 . 2 3 . Largest Group 13 | . 1 1 1 1 1 1 1 1 1 1 1 2 1 1 1 5 5 5 13 8 3 3 3 1 1 1 1 4 1 2 2 1 Highest-Rated Group 625 | . 60 62 64 62 62 62 87 100 99 98 98 194 117 117 117 218 218 221 625 624 338 338 342 164 164 165 165 340 196 265 268 226 Highest-Rated Ally 226 | . 60 62 64 62 62 62 87 100 99 98 98 100 117 117 117 117 117 137 159 153 146 148 166 164 164 165 165 192 196 210 210 226 Total Orders . | . . . . . . . . . . . . . . . . . . . . . . . . . . . . . . . . . Ally Attacks 756 | . 32 . 50 10 . 4 90 23 5 4 . 24 48 1 5 . . 35 154 84 9 39 23 4 3 2 8 48 10 4 31 6 Total Damage 31176 | . 427 . 879 194 . 86 1864 723 228 205 . 1082 2377 21 426 . . 2117 4185 2540 696 2004 1651 277 298 64 681 3270 898 171 3301 511 Kills 247 | . 10 . 17 2 . 1 18 13 3 2 . 7 24 . 4 . . 20 29 12 4 9 11 2 1 . 2 27 6 1 19 3 Allies Corrupted 4 | . . . . . . . . . . . . . . . . . . . . 2 . . . . . . . . . 2 . . Allies Melted 7 | . . . . . . . . . . . . 1 . . . . . . 1 . . . . . . 3 . . . 2 . . Intel | -11 -10 -10 -9 -9 -9 -8 -8 -7 -7 -7 -7 -6 -6 -6 -6 -6 -5 -5 -5 -5 -5 -5 -4 -4 -4 -4 -3 -3 -3 -2 -2 -1 ------- Run | Scr Mat Min Mat Min Exi Min Mat Fac Low Low Dat Pro Fac Low Low Zio Pro Fac Ext Cet Arc Hub Fac Upp Upp War Pro Res Qua Res Tes Acc Robot Analysis Total 8 | . 3 . 1 . . . . . . . . . . . . . . . . . . 1 1 . . . . . 2 . . . Derelict Logs Recovered 10 | . . 1 . . . . . . . 1 . 2 . 1 1 1 . . . . . . . 2 1 . . . . . . . Drone Launches . | . . . . . . . . . . . . . . . . . . . . . . . . . . . . . . . . . Drone Recoveries . | . . . . . . . . . . . . . . . . . . . . . . . . . . . . . . . . . Exploration | -11 -10 -10 -9 -9 -9 -8 -8 -7 -7 -7 -7 -6 -6 -6 -6 -6 -5 -5 -5 -5 -5 -5 -4 -4 -4 -4 -3 -3 -3 -2 -2 -1 ------------- Run | Scr Mat Min Mat Min Exi Min Mat Fac Low Low Dat Pro Fac Low Low Zio Pro Fac Ext Cet Arc Hub Fac Upp Upp War Pro Res Qua Res Tes Acc Turns Passed 22036 | 3 1042 178 1399 770 249 81 1748 1804 557 774 166 489 1799 447 709 1119 316 1779 887 363 65 306 651 296 476 501 666 1162 476 197 274 287 Spaces Moved 13587 | 3 572 110 569 363 132 37 757 1265 315 388 83 298 1185 350 486 840 222 1120 522 194 40 187 468 199 339 408 451 814 352 144 180 194 Core . | . . . . . . . . . . . . . . . . . . . . . . . . . . . . . . . . . Treads 1059 | . 572 110 377 . . . . . . . . . . . . . . . . . . . . . . . . . . . . . Legs 12528 | 3 . . 192 363 132 37 757 1265 315 388 83 298 1185 350 486 840 222 1120 522 194 40 187 468 199 339 408 451 814 352 144 180 194 Wheels . | . . . . . . . . . . . . . . . . . . . . . . . . . . . . . . . . . Hover . | . . . . . . . . . . . . . . . . . . . . . . . . . . . . . . . . . Flight . | . . . . . . . . . . . . . . . . . . . . . . . . . . . . . . . . . Fastest Speed 97 | 120 160 160 160 190 190 190 190 122 122 192 192 122 112 120 120 120 120 120 120 120 120 115 115 115 115 100 100 100 97 97 100 103 Average Speed 133 | 120 160 160 214 197 190 190 191 122 155 192 192 141 119 120 120 120 120 120 120 146 120 119 115 115 115 105 100 100 98 97 100 107 Slowest Speed 400 | 120 160 160 400 260 190 190 193 122 192 192 192 192 193 120 120 120 120 190 120 190 120 120 115 115 115 115 100 100 169 100 103 112 Overloaded Moves . | . . . . . . . . . . . . . . . . . . . . . . . . . . . . . . . . . Propulsion Burnouts . | . . . . . . . . . . . . . . . . . . . . . . . . . . . . . . . . . Robots Hopped . | . . . . . . . . . . . . . . . . . . . . . . . . . . . . . . . . . Cave-ins Triggered . | . . . . . . . . . . . . . . . . . . . . . . . . . . . . . . . . . Exploration Rate (%) 47 | 2 89 23 55 60 50 13 71 30 55 58 68 50 34 58 65 86 42 41 67 60 83 23 16 40 54 77 72 27 47 8 33 8 Regions Visited 32 Branch Regions 22 Pre-discovered Areas 6 | . 2 1 . . 1 . . . . . 1 . . . . 1 . . . . . . . . . . . . . . . . Known Exits Taken 8 | . . . 1 . . . . . . . . 1 1 . . . . 1 . . . 1 . . . . 1 1 . 1 . . Unknown Exits Taken 24 | 1 1 1 . 1 1 1 1 1 1 1 1 . . 1 1 1 1 . 1 1 1 . 1 1 1 1 . . 1 . 1 . Scrap Searched 21 | . . . . . . . . . 2 2 . 1 . 5 3 2 1 . . . . . . . 3 . 2 . . . . . Spaces Dug 59 | . . . . . . . . 2 . . . . 17 . 16 . . 1 . . . 2 . . . . 1 12 5 2 . 1 Terrain Destroyed 585 | . . . 6 . . . 39 2 19 . . . 57 1 39 . . 25 13 3 . 153 17 . . . 4 83 9 7 105 3 Melee 2 | . . . . . . . . 2 . . . . . . . . . . . . . . . . . . . . . . . . Projectile 125 | . . . . . . . . . . . . . 28 1 39 . . 7 4 3 . 5 1 . . . 4 18 9 3 . 3 AOE 458 | . . . 6 . . . 39 . 19 . . . 29 . . . . 18 9 . . 148 16 . . . . 65 . 4 105 . Terrain Rammed . | . . . . . . . . . . . . . . . . . . . . . . . . . . . . . . . . . Walls Destroyed . | . . . . . . . . . . . . . . . . . . . . . . . . . . . . . . . . . Machines Disabled . | . . . . . . . . . . . . . . . . . . . . . . . . . . . . . . . . . Actions | -11 -10 -10 -9 -9 -9 -8 -8 -7 -7 -7 -7 -6 -6 -6 -6 -6 -5 -5 -5 -5 -5 -5 -4 -4 -4 -4 -3 -3 -3 -2 -2 -1 --------- Run | Scr Mat Min Mat Min Exi Min Mat Fac Low Low Dat Pro Fac Low Low Zio Pro Fac Ext Cet Arc Hub Fac Upp Upp War Pro Res Qua Res Tes Acc Total 16528 | 2 647 112 670 395 131 40 916 1442 376 405 90 327 1391 372 538 951 271 1430 743 246 57 231 570 267 423 479 644 1156 480 200 266 260 Wait 1394 | . 12 3 15 8 . . 54 70 42 12 8 9 33 21 20 108 49 177 84 10 18 7 5 52 69 45 183 143 43 12 69 13 Move 13554 | 2 571 109 568 362 131 36 756 1264 314 387 82 297 1184 349 485 839 221 1119 521 193 39 186 467 198 338 407 450 813 351 143 179 193 Hop . | . . . . . . . . . . . . . . . . . . . . . . . . . . . . . . . . . Pick Up 116 | . 12 . 9 3 . . 9 12 4 . . . 15 . 1 1 . 15 . 5 . 2 5 . 1 3 . 11 4 1 1 2 Fast Attach 97 | . 3 . 10 . . . 1 8 1 . . 1 12 . . 1 . 5 2 2 . 3 5 . . 7 . 7 9 4 3 13 Attach 48 | . 2 . . 1 . . 8 5 . . . . 4 . . . . 8 . 1 . 1 2 . . 3 . 4 1 2 1 5 Detach 20 | . 1 . . . . . 1 3 . . . . 5 . . 1 . 1 . . . 2 2 . . 1 . 2 . . . 1 Swap 138 | . 2 . 9 2 . . 8 13 3 . . . 18 . . . 1 17 9 5 . 2 7 4 4 2 1 20 5 . . 6 Drop 209 | . 14 . 17 6 . . 5 21 6 . . 1 32 . 1 1 . 15 6 9 . 5 10 3 1 11 . 19 10 4 2 10 Fire 834 | . 30 . 42 13 . 4 73 44 6 6 . 19 88 2 31 . . 54 29 21 . 23 66 10 9 . 10 136 57 34 11 16 Melee 20 | . . . . . . . . 2 . . . . . . . . . 14 . . . . 1 . 1 . . 1 . . . 1 Ram . | . . . . . . . . . . . . . . . . . . . . . . . . . . . . . . . . . Kick 1 | . . . . . . . 1 . . . . . . . . . . . . . . . . . . . . . . . . . Crush . | . . . . . . . . . . . . . . . . . . . . . . . . . . . . . . . . . Escape Stasis 14 | . . . . . . . . . . . . . . . . . . 5 9 . . . . . . . . . . . . . Rewire 83 | . . . . . . . . . . . . . . . . . . . 83 . . . . . . . . . . . . . Trap . | . . . . . . . . . . . . . . . . . . . . . . . . . . . . . . . . . Miscellaneous . | . . . . . . . . . . . . . . . . . . . . . . . . . . . . . . . . . Route ------- -11/Scrapyard -10/Materials (discovered 5 exits: *Mat x3 / [*Min x2]) -10/Mines -9/Materials (discovered 2 exits: *Mat / *Min) -9/Mines (discovered 2 exits: *Mat / *Exi) -9/Exiles -8/Mines (discovered 2 exits: *Mat x2) -8/Materials (discovered 2 exits: *Fac x2) -7/Factory (discovered 5 exits: *Fac x2 / *Sto x2 / *Low) -7/Lower Caves -7/Lower Caves -7/Data Miner -6/Proximity Caves -6/Factory (discovered 3 exits: *Fac / *Low x2) -6/Lower Caves -6/Lower Caves -6/Zion -5/Proximity Caves -5/Factory (discovered 5 exits: *Fac / *Upp x2 / *Ext x2) -5/Extension (discovered 3 exits: *Fac x2 / *Cet) -5/Cetus (discovered 2 exits: *Fac / *Arc) -5/Archives (discovered 2 exits: *Hub x2) -5/Hub_04(d) (discovered 2 exits: *Fac x2) -4/Factory (discovered 5 exits: *Res x4 / [*Upp]) -4/Upper Caves -4/Upper Caves -4/Warlord -3/Proximity Caves -3/Research (discovered 3 exits: Arm / *Qua x2) -3/Quarantine -2/Research (discovered 2 exits: *Tes x2) -2/Testing -1/Access To Fleet Rendezvous History --------- Turn | Location | Event 1 | -11/Scrapyard | Discovered new exit (range 3) 4 | -11/Scrapyard | Entered Materials 183 | -10/Materials | Discovered new exit (range 16) 210 | -10/Materials | Central database locked down 309 | -10/Materials | Build established: Mutant 358 | -10/Materials | Discovered new exit (range 7) 413 | -10/Materials | Discovered new exit (range 6) 551 | -10/Materials | Discovered new exit (range 8) 782 | -10/Materials | Discovered new exit (range 16) 1046 | -10/Materials | Entered Mines 1131 | -10/Mines | A weapon hastily lodged in a ceiling crevice suddenly fell to the ground 1198 | -10/Mines | Discovered new exit (range 9) 1224 | -10/Mines | Entered Materials 1224 | -9/Materials | Evolved 2 slots: Utility x2 1560 | -9/Materials | Discovered new exit (range 5) 1869 | -9/Materials | Identified exit to Mines 2623 | -9/Materials | Entered Mines 2698 | -9/Mines | Discovered new exit (range 8) 3137 | -9/Mines | Joined a pair of Derelicts in attacking an 0b10 outpost 3382 | -9/Mines | Deemed a non-threat by the Exiles lab entrance 3384 | -9/Mines | Discovered new exit (range 5) 3393 | -9/Mines | Entered Exiles 3437 | -9/Exiles | Met 8R-AWN 3471 | -9/Exiles | Met EX-HEX 3528 | -9/Exiles | Met EX-BIN 3551 | -9/Exiles | Met EX-DEC 3559 | -9/Exiles | Learned location of Zion (-6) 3621 | -9/Exiles | Discovered new exit (range 10) 3642 | -9/Exiles | Entered Mines 3708 | -8/Mines | Discovered new exit (range 5) 3717 | -8/Mines | Discovered new exit (range 11) 3723 | -8/Mines | Entered Materials 3723 | -8/Materials | Evolved 2 slots: Propulsion x1, Utility x1 3859 | -8/Materials | Garrison activated, responded to threat 4020 | -8/Materials | Build established: Scavenger-Mutant 4563 | -8/Materials | Discovered new exit (range 4) 4743 | -8/Materials | Build established: Mutant 4871 | -8/Materials | Garrison activated, responded to threat 4909 | -8/Materials | Lost 3 parts (1n1u1w) 5413 | -8/Materials | Discovered new exit (range 14) 5471 | -8/Materials | Entered Factory 5471 | -7/Factory | Evolved 2 slots: Propulsion x1, Utility x1 5769 | -7/Factory | Discovered new exit (range 13) 5783 | -7/Factory | Build established: Scavenger-Mutant 5878 | -7/Factory | Discovered new exit (range 14) 5881 | -7/Factory | Fabricated Weapon Cycler? 6019 | -7/Factory | Identified exit to Factory 6043 | -7/Factory | Identified exit to Storage 6582 | -7/Factory | Discovered new exit (range 6) 6780 | -7/Factory | Discovered exit to Storage (range 11) 6880 | -7/Factory | Discovered exit to Factory (range 10) 7271 | -7/Factory | Build established: Mutant 7275 | -7/Factory | Entered Lower Caves 7739 | -7/Lower Caves | Learned Research emergency access door positions 7739 | -7/Lower Caves | Learned Research stockpile data 7739 | -7/Lower Caves | Learned Factory terminal intel 7739 | -7/Lower Caves | Learned Armory terminal intel 7822 | -7/Lower Caves | Discovered new exit (range 5) 7832 | -7/Lower Caves | Entered another Lower Caves area 8120 | -7/Lower Caves | Learned Factory stockpile data 8379 | -7/Lower Caves | Attracted the attention of an 0b10 checkpoint 8490 | -7/Lower Caves | Discovered new exit (range 3) 8606 | -7/Lower Caves | Entered Data Miner 8606 | -7/Data Miner | Discovered new exit (range 6) 8649 | -7/Data Miner | Met Data Miner 8683 | -7/Data Miner | Learned location of Section 7 (-2) 8683 | -7/Data Miner | Acquired the access code to Warlord's prototype stash 8716 | -7/Data Miner | Received God Mode back door access code from Data Miner 8772 | -7/Data Miner | Entered Proximity Caves 8784 | -6/Proximity Caves | Escorted by Enhanced Grunt 8784 | -6/Proximity Caves | Attracted the attention of an 0b10 checkpoint 8818 | -6/Proximity Caves | Learned Factory stockpile data 8942 | -6/Proximity Caves | Attracted the attention of an 0b10 base 9240 | -6/Proximity Caves | Discovered exit to Factory (range 11) 9241 | -6/Proximity Caves | Spotted B-75 Beast 9252 | -6/Proximity Caves | Learned 4 Factory zone layouts 9261 | -6/Proximity Caves | Entered Factory 9261 | -6/Factory | Evolved 2 slots: Utility x2 9264 | -6/Factory | Loaded intel: 26 terminal locations 9563 | -6/Factory | Build established: Hacker-Mutant 9725 | -6/Factory | Garrison activated, responded to threat 9807 | -6/Factory | Discovered new exit (range 8) 10059 | -6/Factory | Identified exit to Lower Caves 10661 | -6/Factory | First assault squad dispatched 10679 | -6/Factory | Incoming investigation squad redirected 10691 | -6/Factory | Incoming assault squad redirected 10720 | -6/Factory | Fabricated Lgt. Regenerative Plating (x1) 11060 | -6/Factory | Entered Lower Caves 11120 | -6/Lower Caves | Learned 12 Factory zone layouts 11470 | -6/Lower Caves | Discovered new exit (range 14) 11507 | -6/Lower Caves | Entered another Lower Caves area 11594 | -6/Lower Caves | Encountered a Warlord checkpoint 11839 | -6/Lower Caves | Learned location of 1 exit from Factory 11877 | -6/Lower Caves | Spotted B-75 Beast 12141 | -6/Lower Caves | Allies destroyed B-75 Beast 12156 | -6/Lower Caves | Discovered new exit (range 14) 12216 | -6/Lower Caves | Entered Zion 12355 | -6/Zion | Learned Factory emergency access door positions 12436 | -6/Zion | Received a hallucinogenic algorithm 12566 | -6/Zion | Gained Derelict followers 12632 | -6/Zion | Learned 8 Factory zone layouts 12977 | -6/Zion | Found CR-A16's Pointy Stick 13265 | -6/Zion | Discovered new exit (range 14) 13335 | -6/Zion | Entered Proximity Caves 13335 | -5/Proximity Caves | Accompanied by 4 allies 13621 | -5/Proximity Caves | Discovered new exit (range 5) 13651 | -5/Proximity Caves | Entered Factory 13651 | -5/Factory | Accompanied by 4 allies 13651 | -5/Factory | Evolved 2 slots: Power x1, Utility x1 13652 | -5/Factory | Identified exit to Upper Caves 13653 | -5/Factory | Identified exit to Extension 13653 | -5/Factory | Identified exit to Factory 13806 | -5/Factory | Spotted B-75 Beast 13852 | -5/Factory | Revealed the true nature of CR-A16's Pointy Stick 13855 | -5/Factory | Destroyed B-75 Beast 13881 | -5/Factory | Lost 3 parts (1n2u) 14774 | -5/Factory | Build established: Scavenger-Mutant 14917 | -5/Factory | Incoming investigation squad redirected 15229 | -5/Factory | Fabricated Adv. Hardlight Generator (x2) 15296 | -5/Factory | Incoming investigation squad redirected 15366 | -5/Factory | Fabricated Adv. Terrain Scanner (x2) 15430 | -5/Factory | Entered Extension 15438 | -5/Extension | Rescued a captive Derelict 15439 | -5/Extension | Rescued a captive Derelict 15439 | -5/Extension | Rescued a captive Derelict 15449 | -5/Extension | Rescued a captive Derelict 15454 | -5/Extension | Rescued a captive Derelict 15455 | -5/Extension | Rescued a captive Derelict 15456 | -5/Extension | Rescued a captive Derelict 15465 | -5/Extension | Rescued a captive Derelict 15467 | -5/Extension | Rescued A7 15470 | -5/Extension | Rescued a captive Derelict 15730 | -5/Extension | First assault squad dispatched 15910 | -5/Extension | Build established: Commander-Mutant 16057 | -5/Extension | Spotted B-75 Beast 16073 | -5/Extension | Destroyed B-75 Beast 16077 | -5/Extension | Spotted B-75 Beast 16094 | -5/Extension | Allies destroyed B-75 Beast 16098 | -5/Extension | Discovered exit to Factory (range 14) 16157 | -5/Extension | Destroyed 7 combat bots 16235 | -5/Extension | Discovered new exit (range 21) 16237 | -5/Extension | Discovered exit to Factory (range 21) 16317 | -5/Extension | Entered Cetus 16317 | -5/Cetus | Accompanied by 7 allies (A7) 16322 | -5/Cetus | Acquired a Cetus Manufacturing Module code from A7 16328 | -5/Cetus | Spotted Cetus Guard 16329 | -5/Cetus | Spotted Cetus Guard 16334 | -5/Cetus | Spotted Cetus Guard 16337 | -5/Cetus | Spotted Cetus Guard 16349 | -5/Cetus | Allies destroyed Cetus Guard 16351 | -5/Cetus | Destroyed Cetus Guard 16355 | -5/Cetus | Allies destroyed Cetus Guard 16357 | -5/Cetus | Allies destroyed Cetus Guard 16400 | -5/Cetus | Started Cetus Manufacturing Module 16425 | -5/Cetus | Manufactured an Enhanced Grunt 16425 | -5/Cetus | Discovered new exit (range 22) 16450 | -5/Cetus | Manufactured an Enhanced Grunt 16458 | -5/Cetus | Spotted Cetus Guard 16459 | -5/Cetus | Spotted Cetus Guard 16463 | -5/Cetus | Spotted Cetus Guard 16466 | -5/Cetus | Destroyed Cetus Guard 16469 | -5/Cetus | Spotted Cetus Guard 16474 | -5/Cetus | Allies destroyed Cetus Guard 16475 | -5/Cetus | Manufactured an Enhanced Grunt 16475 | -5/Cetus | Discovered exit to Factory (range 21) 16483 | -5/Cetus | Destroyed Cetus Guard 16488 | -5/Cetus | Destroyed Cetus Guard 16497 | -5/Cetus | Found Prototype Device 16497 | -5/Cetus | Identified Exp. Thermal Shield 16500 | -5/Cetus | Manufactured an Enhanced Grunt 16525 | -5/Cetus | Manufactured an Enhanced Grunt 16575 | -5/Cetus | Met Revision 17 16680 | -5/Cetus | Entered Archives 16680 | -5/Archives | Accompanied by 3 allies (A7) 16695 | -5/Archives | Met Zhirov 16695 | -5/Archives | Discovered new exit (range 22) 16700 | -5/Archives | Discovered new exit (range 22) 16701 | -5/Archives | Reinforcements dispatched to Archives 16708 | -5/Archives | Read partially decrypted archive contents 16708 | -5/Archives | Read partially decrypted archive contents 16745 | -5/Archives | Entered Hub_04(d) 16745 | -5/Hub_04(d) | Accompanied by 2 allies 16753 | -5/Hub_04(d) | Discovered exit to Factory (range 19) 16777 | -5/Hub_04(d) | Discovered exit to Factory (range 15) 16792 | -5/Hub_04(d) | Build established: Scavenger-Mutant 16876 | -5/Hub_04(d) | Core integrity fell below 50% 16987 | -5/Hub_04(d) | Network Hub disabled 17001 | -5/Hub_04(d) | Spotted Lightning 17001 | -5/Hub_04(d) | Spotted Lightning 17001 | -5/Hub_04(d) | Spotted Lightning 17009 | -5/Hub_04(d) | Allies destroyed Lightning 17014 | -5/Hub_04(d) | Destroyed Lightning 17015 | -5/Hub_04(d) | Allies destroyed Lightning 17023 | -5/Hub_04(d) | Found Prototype Device 17023 | -5/Hub_04(d) | Identified Exp. EM Disruption Field 17051 | -5/Hub_04(d) | Entered Factory 17051 | -4/Factory | Accompanied by 2 allies 17051 | -4/Factory | Evolved 2 slots: Utility x2 17133 | -4/Factory | Found Quantum Capacitor 17149 | -4/Factory | Spotted B-86 Titan 17159 | -4/Factory | Destroyed B-86 Titan 17174 | -4/Factory | Fabricated Lgt. Quantum Reactor? 17317 | -4/Factory | Identified exit to Research 17436 | -4/Factory | Build established: Hacker-Mutant 17531 | -4/Factory | Found Prototype Hackware 17531 | -4/Factory | Identified Exp. Hacking Suite 17551 | -4/Factory | Discovered new exit (range 18) 17702 | -4/Factory | Entered Upper Caves 17746 | -4/Upper Caves | Learned Research stockpile data 17820 | -4/Upper Caves | Encountered a Warlord checkpoint 17966 | -4/Upper Caves | Discovered new exit (range 18) 17998 | -4/Upper Caves | Entered another Upper Caves area 18060 | -4/Upper Caves | Spotted B-86 Titan 18072 | -4/Upper Caves | Destroyed B-86 Titan 18183 | -4/Upper Caves | Learned Research stockpile data 18456 | -4/Upper Caves | Discovered new exit (range 7) 18474 | -4/Upper Caves | Entered Warlord 18637 | -4/Warlord | Met Warlord 18653 | -4/Warlord | Opened Warlord's prototype stash 18658 | -4/Warlord | Found Prototype Reactor 18658 | -4/Warlord | Identified Vortex Chain Reactor 18662 | -4/Warlord | Warlord's base attacked by MAIN.C 18678 | -4/Warlord | Found Prototype Device 18678 | -4/Warlord | Identified System Purifier 18694 | -4/Warlord | Found Prototype Processor 18694 | -4/Warlord | Identified Spectral Analyzer 18905 | -4/Warlord | Opened side exit 18925 | -4/Warlord | Discovered new exit (range 9) 18953 | -4/Warlord | Build established: Hacker-Skirmisher 18975 | -4/Warlord | Entered Proximity Caves 19522 | -3/Proximity Caves | Attracted the attention of an 0b10 checkpoint 19562 | -3/Proximity Caves | Discovered exit to Research (range 9) 19641 | -3/Proximity Caves | Entered Research 19641 | -3/Research | Evolved 2 slots: Utility x2 19847 | -3/Research | Spotted B-86 Titan 19847 | -3/Research | Spotted B-86 Titan 19852 | -3/Research | Destroyed B-86 Titan 19914 | -3/Research | Identified exit to Armory 19914 | -3/Research | Identified exit to Quarantine 20003 | -3/Research | Fabricated Adv. Component Analysis Suite (x1) 20145 | -3/Research | Incoming investigation squad redirected 20171 | -3/Research | Build established: Hacker-Assassin 20391 | -3/Research | First assault squad dispatched 20465 | -3/Research | Found Prototype Launcher 20465 | -3/Research | Identified Tactical Quantum Warhead 20603 | -3/Research | Build established: Hacker-Mutant 20621 | -3/Research | Found Antimissile System 20698 | -3/Research | Garrison activated, responded to threat 20731 | -3/Research | Destroyed 9 combat bots 20803 | -3/Research | Entered Quarantine 20814 | -3/Quarantine | Found Alien Artifact 20814 | -3/Quarantine | Identified Core Reset Matrix 20814 | -3/Quarantine | Used Core Reset Matrix 20818 | -3/Quarantine | Detected hypermatrix surge 20818 | -3/Quarantine | Sensed 4 artifacts in vicinity 20847 | -3/Quarantine | Found Exp. Thermal Shield 20869 | -3/Quarantine | Found Subatomic Replicator 21085 | -3/Quarantine | First assault squad dispatched 21110 | -3/Quarantine | Incoming assault squad redirected 21111 | -3/Quarantine | Found Core Cannon 21223 | -3/Quarantine | Discovered new exit (range 11) 21279 | -3/Quarantine | Entered Research 21279 | -2/Research | Warlord forces began assault on 0b10 21279 | -2/Research | Evolved 2 slots: Utility x2 21296 | -2/Research | Identified exit to Testing 21389 | -2/Research | Research machine network offline 21476 | -2/Research | Entered Testing 21518 | -2/Testing | Repaired Enh. Biometal Leg 21575 | -2/Testing | Found Prototype Energy Cannon 21575 | -2/Testing | Identified Cld. Nova Cannon 21614 | -2/Testing | Protovariant out of control (PH-PDVR32A8TH) 21614 | -2/Testing | Unleashed a protovariant (PH-PDVR32A8TH) 21693 | -2/Testing | Destroyed 10 combat bots 21705 | -2/Testing | Discovered new exit (range 17) 21715 | -2/Testing | Lost 5 parts (1p1n3u) 21726 | -2/Testing | First assault squad dispatched 21746 | -2/Testing | Incoming assault squad redirected 21750 | -2/Testing | Entered Access 21750 | -1/Access | Evolved 2 slots: Utility x2 21911 | -1/Access | Spotted B-99 Colossus 21915 | -1/Access | Destroyed B-99 Colossus 22000 | -1/Access | First assault squad dispatched 22029 | -1/Access | Discovered new exit (range 6) 22037 | *** | Heading to fleet! Last Messages --------------- 22019_ Knocked back. 22020_ H-81 Overseer heat short circuits Unknown Treads. 22020_ Unknown Device melted. 22020_ H-81 Overseer destroyed. 22021_ HV Slug penetrates W-44 Eye. 22021_ W-44 Eye destroyed. 22022_ K-01 Serf collects debris. 22025_ Connecting with Terminal... >>Open(Door) Sealed Barrier opened. 22026_ K-01 Serf collects debris. 22027_ K-01 Serf cleans the Terminal. 22029_ The Access Shell folds into the floor. 22029_ EXIT=FOUND 22029_ K-01 Serf collects debris. 22030_ K-01 Serf cleans the Terminal. 22033_ K-01 Serf collects debris. 22033_ K-01 Serf cleans the Terminal. 22037_ K-01 Serf collects debris. [Achievement: Home At Last?] Map ----- +----------------------------------------------------+ | ?????????????????????????????????????????????????? | | ?????????????????????????????????????? ?????????? | | ?????????????????????????????????????? ?????????? | | ?????????????????????????????????????? ?????????? | | ?????????????????????????????????????? ?????????? | | ?????????????????????????????????????? ?????????? | | ?????????????????????????????????????? #????????? | | ?????????????????????????????????????? ##???????? | | ?????????????????????????????????????? ????????? | | ?????????????????????????????????????? ????????? | | ?????????????????????????????????????? ????????? | | ?????????????????????????????????????? ????????? | | ?????????????????????????????????????# #????????? | | ?????????????????????????????????????# #????????? | | ?????????????????????????????????????# #????????? | | ?????????????????????????????????????# #????????? | | ?????????????????????????????????????# #????????? | | ?????????????????????????????????????#= ##???????? | | ?????????????????????????????????????#*]"#???????? | | ?????????????????????????????###?????#%=;#???????? | | ????????????????????########## #######!!#????????? | | ????????????????????" ! #????????? | | ????????????????????" #????????? | | ????????????????????" #????????? | | ????????????????????" % #????????? | | ????????????????????" "@ % *!##???????? | | ????????????????????" "" !%;#???????? | | ????????????????????" @ k!##???????? | | ????????????????????" %#????????? | | ????????????????????" """ """ #????????? | | ????????????????????" """T""" k#????????? | | ???????""???????????########## ####### #????????? | | ???????""????????????????????###?????# #????????? | | ???????""????????????????????????????# ########## | | ????????G????????????????????????????# # | | ???????""????????????????????????????# # | | ???????""????????????????????????????# # " | | ???????""?????????????################ # """ | | ??????????????????????# """"""""""" # """ | | ??????????????????????# """"T"""" + " | | ??????????????????????# # | | ??????????????????????# # | | ??????????????????????# # | | ??????????????????????# ** [ # ! | | ??????????????????????# ** " # = | | ??????????????????????# * """ ###"###### | | ???????????????######## """ ## | | ???????????????# " # | | ???????????????# # | | ???????????????# ^ + | +----------------------------------------------------+ Best States ------------- Heat Dissipation 83 Coolant Potential 100 Energy Generation 70 Energy Capacity 700 Matter Stores 300 Matter Capacity 700 Sight Range 24 Terrain Scan Range 20 Terrain Scan Density 210 Power Amplification 30 EM Shielding 4 Armor Coverage 750 Resistance: KI 50 Resistance: TH 50 Resistance: EX 20 Resistance: EM 95 Resistance: I 20 Resistance: S 20 Resistance: P 20 Utility Shielding 66 Weapon Cycling 20 Phase Shifting 15 Evasion (%) 75 Targeting Accuracy 8 Core Analysis 6 Recoil Reduction 2 Matter Filtering 30 Particle Charging 25 Offensive Hacking 26 Defensive Hacking 10 Authchip Count 1 Item Schematics ----------------- Adv. Energy Well | -2/Testing | Archive Exp. Matter Compressor | -2/Testing | Archive Centrium Leg | -2/Testing | Hacked Robot Schematics ------------------ K-01 Serf | -2/Testing | Archive Fabricated ------------ Weapon Cycler | x2 | -7/Factory | Preloaded Lgt. Regenerative Plating | x1 | -6/Factory | Authchip Adv. Hardlight Generator | x2 | -5/Factory | Authchip Adv. Terrain Scanner | x2 | -5/Factory | Authchip Lgt. Quantum Reactor | x2 | -4/Factory | Preloaded Adv. Component Analysis Suite | x1 | -3/Research | Preloaded Alien Tech Used ----------------- Core Reset Matrix Core Cannon Achievements -------------- Home At Last? Challenges ------------ None Player 2 | -11 -10 -10 -9 -9 -9 -8 -8 -7 -7 -7 -7 -6 -6 -6 -6 -6 -5 -5 -5 -5 -5 -5 -4 -4 -4 -4 -3 -3 -3 -2 -2 -1 ---------- Run | Scr Mat Min Mat Min Exi Min Mat Fac Low Low Dat Pro Fac Low Low Zio Pro Fac Ext Cet Arc Hub Fac Upp Upp War Pro Res Qua Res Tes Acc Slots Evolved 18 | . . 2 . . . 2 2 . . . . 2 . . . . 2 . . . . 2 . . . . 2 . 2 . 2 . Power 2 | . . . . . . 1 . . . . . 1 . . . . . . . . . . . . . . . . . . . . Propulsion 5 | . . 1 . . . . 1 . . . . 1 . . . . 1 . . . . . . . . . . . 1 . . . Utility 9 | . . 1 . . . . 1 . . . . . . . . . 1 . . . . 1 . . . . 2 . 1 . 2 . Weapon 2 | . . . . . . 1 . . . . . . . . . . . . . . . 1 . . . . . . . . . . Parts Attached 172 | . 19 1 10 1 . . 22 17 2 2 . 1 19 . 1 . . 19 13 5 . 4 4 1 1 1 2 15 5 2 . 5 Parts Lost 21 | . . . 1 1 . . 6 2 . . . . 1 . . . . 4 . . . 1 . 1 . . 2 1 . . . 1 Damage Taken 6190 | . 166 . 365 11 . . 852 302 63 28 . 246 569 55 . . . 871 174 121 78 328 463 60 . 161 103 796 23 . 226 129 Core 833 | . 51 . 91 . . . 125 15 15 . . 57 57 19 . . . 221 . . 20 41 22 . . . 24 41 . . 34 . Player 2/Cogmind (%) 42 | . 63 . 47 . . . 55 29 31 . . 71 32 100 . . . 60 . . 100 22 26 . . . 100 28 . . 29 . Absorbed by Shields 621 | . . . . . . . . . . . . . . . . . . 74 25 13 . . . . . . 102 359 22 . 26 . Damage Inflicted 23196 | . 427 . 879 194 . 86 1864 723 228 205 . 797 2377 21 426 . . 1980 1224 683 32 817 1604 277 298 64 681 2716 898 137 3047 511 Player 2/Cogmind (%) 39 | . 40 . 41 38 . 54 36 32 38 45 . 49 37 23 39 . . 36 34 44 100 36 35 43 47 100 62 35 40 9 55 47 Combat Hostiles Destroyed 154 | . 7 . 11 2 . 1 16 10 3 2 . 6 19 . 4 . . 12 7 2 . 4 9 2 1 . 2 16 5 . 12 1 Player 2/Cogmind (%) 38 | . 36 . 42 50 . 33 40 55 50 40 . 35 44 . 57 . . 37 31 25 . 57 42 40 20 . 33 35 27 . 52 20 Game ------ Seed DimensionalSpacefoldPod Manual? 0 Play Time 03:31:54 Cumulative 124.0 hours Start 2022.04.27 @ 10:31:32 End 2022.04.28 @ 00:24:15 Sessions 8 Manual Loads 0 Difficulty Adventurer Special Mode AFD2020/Player2 Game No. 52 Rogue 0 Adventurer 52 Explorer 0 Win Type 2 Total 10 Types 5/1/1/0/1/0/0/1/1 Lore% 83 Gallery% 73 Achievement% 68 Wizard Run 0 Options --------- ASCII 0 Keyboard 0 Movement Numpad Keybinds 0 Fullscreen 2 Font 18/SmallcapsGlow Map View 76x50 Tactical HUD 1 Map Filters NONE Filters NONE Steam 1 RUN: 451293ae-936f-4898-97f1-21926939fb0e